fUSD/lending_fUSD_20250923
["ID","MTS","AMOUNT","RATE_DAILY","PERIOD"]
[387186120,1758621051445,-250.0,0.00026521,2]
[387186121,1758621051454,-160.49,0.00026555,2]
[387186122,1758621051465,-150.75,0.00026555,2]
[387186123,1758621051474,-1500.0,0.00026568,2]
[387186124,1758621051483,-152.0,0.00026581,7]
[387186125,1758621051493,-683.30288093,0.00026583,2]
[387186126,1758621051502,-18876.25740849,0.0002659,5]
[387186127,1758621051511,-910.0,0.00026614,2]
[387186128,1758621051520,-424.0,0.00026614,2]
[387186129,1758621051530,-157.86,0.00026647,2]
[387186130,1758621051539,-382.95,0.00026679,2]
[387186131,1758621051549,-268.34,0.00026709,7]
[387186132,1758621051558,-1870.98,0.00026709,7]
[387186133,1758621051568,-163.12,0.0002676,2]
[387186134,1758621051578,-186.0,0.0002678,2]
[387186135,1758621051587,-12379.71693225,0.00026819,2]
[387186136,1758621051597,-754.54,0.00026822,2]
[387186137,1758621051606,-805.56,0.00026822,2]
[387186138,1758621051616,-910.0,0.00026888,2]
[387186139,1758621051625,-424.0,0.00026888,2]
[387186140,1758621051635,-5316.87793201,0.00026899,2]
[387186141,1758621051645,-1507.46101752,0.000269,2]
[387186142,1758621051654,-600.0,0.00026925,2]
[387186143,1758621051663,-150.0,0.00026975,4]
[387186144,1758621051673,-150.0,0.00026975,4]
[387186145,1758621051682,-150.0,0.00026975,4]
[387186146,1758621051691,-150.0,0.00026975,4]
[387186147,1758621051700,-152.43988676,0.00026975,4]
[387186148,1758621051711,-150.0,0.00026975,4]
[387186149,1758621051720,-150.0,0.00026975,4]
[387186150,1758621051730,-150.0,0.00026975,4]
[387186151,1758621051739,-150.0,0.00026975,4]
[387186152,1758621051748,-150.0,0.00026975,4]
[387186153,1758621051759,-150.0,0.00026975,4]
[387186154,1758621051769,-150.0,0.00026975,4]
[387186155,1758621051779,-6000.0,0.00026987,10]
[387186156,1758621051800,-250.0,0.00027,2]
[387186157,1758621051819,-1015.46117065,0.00027,2]
[387186158,1758621051828,-2581.61,0.00027,7]
[387186159,1758621051838,-3227.25,0.00027,7]
[387186160,1758621051848,-3908.38,0.00027,7]
[387186161,1758621051857,-2747.52,0.00027,7]
[387186162,1758621051867,-1821.9,0.00027,7]
[387186163,1758621051876,-56916.89414922,0.00027,2]
[387186164,1758621051886,-5343.87,0.00027,7]
[387186165,1758621051895,-151.0,0.00027,7]
[387186166,1758621051905,-151.0,0.00027,7]
[387186167,1758621051914,-151.0,0.00027,7]
[387186168,1758621051924,-151.0,0.00027,7]
[387186169,1758621051934,-151.0,0.00027,7]
[387186170,1758621051946,-151.0,0.00027,7]
[387186171,1758621051956,-151.0,0.00027,7]
[387186172,1758621051966,-151.0,0.00027,7]
[387186173,1758621051975,-1007.515395,0.00027,7]
[387186174,1758621051985,-1007.515395,0.00027,7]
[387186175,1758621051995,-151.0,0.00027,7]
[387186176,1758621052004,-1007.515395,0.00027,7]
[387186177,1758621052014,-1007.515395,0.00027,7]
[387186178,1758621052024,-38468.02,0.00027,7]
[387186179,1758621052034,-183.932224,0.00027,7]
[387186180,1758621052043,-183.932224,0.00027,7]
[387186181,1758621052051,-183.932224,0.00027,7]
[387186182,1758621052061,-183.932216,0.00027,7]
[387186183,1758621052070,-502.51331932,0.00027068,2]
[387186184,1758621052080,-1500.0,0.00027068,2]
[387186185,1758621052088,-1500.0,0.00027068,2]
[387186186,1758621052098,-1500.0,0.00027068,2]
[387186187,1758621052107,-1500.0,0.00027068,2]
[387186188,1758621052117,-400.0,0.00027068,2]
[387186189,1758621052126,-1001.0544409,0.00027068,2]
[387186190,1758621052135,-350.0,0.00027068,2]
[387186191,1758621052145,-2000.0,0.00027116,2]
[387186192,1758621052154,-263.79,0.00027123,4]
[387186193,1758621052163,-501.0,0.00027137,2]
[387186194,1758621052172,-910.0,0.00027162,2]
[387186195,1758621052182,-424.0,0.00027162,2]
[387186196,1758621052191,-164.0,0.00027185,7]
[387186197,1758621052201,-154.0,0.00027185,7]
[387186198,1758621052211,-154.0,0.00027185,7]
[387186199,1758621052220,-1015.36,0.000273,2]
[387186200,1758621052230,-152.0,0.00027301,8]
[387186201,1758621052239,-250.0,0.00027349,2]
[387186202,1758621052248,-12379.71693225,0.00027354,2]
[387186203,1758621052258,-164.073667,0.00027387,7]
[387186204,1758621052267,-151.0,0.00027387,7]
[387186205,1758621052276,-153.523021,0.00027387,7]
[387186206,1758621052285,-163.65892,0.00027387,7]
[387186207,1758621052295,-170.635069,0.00027387,7]
[387186208,1758621052304,-151.0,0.00027387,7]
[387186209,1758621052313,-151.0,0.00027387,7]
[387186210,1758621052323,-151.0,0.00027387,7]
[387186211,1758621052333,-151.0,0.00027387,7]
[387186212,1758621052343,-151.0,0.00027387,7]
[387186213,1758621052352,-151.0,0.00027387,7]
[387186214,1758621052362,-151.0,0.00027387,7]
[387186215,1758621052371,-3182.62775505,0.0002739,2]
[387186216,1758621052380,-400.0,0.00027397,2]
[387186217,1758621052390,-542.91,0.00027397,60]
[387186218,1758621052399,-542.91,0.00027397,60]
[387186219,1758621052408,-542.91,0.00027397,60]
[387186220,1758621052417,-542.91,0.00027397,60]
[387186221,1758621052426,-542.91,0.00027397,60]
[387186222,1758621052436,-542.91,0.00027397,60]
[387186223,1758621052446,-542.91,0.00027397,60]
[387186224,1758621052455,-542.91,0.00027397,60]
[387186225,1758621052464,-542.91,0.00027397,60]
[387186226,1758621052474,-542.91,0.00027397,60]
[387186227,1758621052483,-542.91,0.00027397,60]
[387186228,1758621052492,-542.91,0.00027397,60]
[387186229,1758621052501,-542.91,0.00027397,60]
[387186230,1758621052510,-542.91,0.00027397,60]
[387186231,1758621052519,-542.91,0.00027397,60]
[387186232,1758621052529,-540.65774177,0.00027397,2]
[387186233,1758621052538,-172.54,0.00027397,80]
[387186234,1758621052548,-23327.12,0.00027397,2]
[387186235,1758621052558,-1420.46,0.00027397,2]
[387186236,1758621052568,-300.0,0.00027397,2]
[387186237,1758621052578,-1500.0,0.00027397,16]
[387186238,1758621052587,-509.48,0.00027397,2]
[387186239,1758621052597,-181.129186,0.00027397,7]
[387186240,1758621052607,-181.129186,0.00027397,7]
[387186241,1758621052616,-181.129186,0.00027397,7]
[387186242,1758621052626,-181.129186,0.00027397,7]
[387186243,1758621052635,-181.129186,0.00027397,7]
[387186244,1758621052644,-181.129186,0.00027397,7]
[387186245,1758621052654,-181.129186,0.00027397,7]
[387186246,1758621052664,-181.129186,0.00027397,7]
[387186247,1758621052673,-181.129186,0.00027397,7]
[387186248,1758621052682,-181.129186,0.00027397,7]
[387186249,1758621052692,-181.129186,0.00027397,7]
[387186250,1758621052701,-181.129186,0.00027397,7]
[387186251,1758621052711,-181.129186,0.00027397,7]
[387186252,1758621052720,-181.129186,0.00027397,7]
[387186253,1758621052730,-181.129186,0.00027397,7]
[387186254,1758621052739,-181.129186,0.00027397,7]
[387186255,1758621052748,-151.0,0.00027397,7]
[387186256,1758621052758,-151.0,0.00027397,7]
[387186257,1758621052768,-151.0,0.00027397,7]
[387186258,1758621052778,-151.0,0.00027397,7]
[387186259,1758621052787,-5316.87793201,0.00027422,2]
[387186260,1758621052796,-18876.25740849,0.00027434,7]
[387186261,1758621052806,-151.0,0.00027435,7]
[387186262,1758621052815,-151.0,0.00027435,7]
[387186263,1758621052824,-151.0,0.00027435,7]
[387186264,1758621052833,-151.0,0.00027435,7]
[387186265,1758621052843,-151.0,0.00027435,7]
[387186266,1758621052852,-151.0,0.00027435,7]
[387186267,1758621052862,-340.519285,0.00027435,7]
[387186268,1758621052871,-340.519285,0.00027435,7]
[387186269,1758621052881,-340.519285,0.00027435,7]
[387186270,1758621052890,-340.519285,0.00027435,7]
[387186271,1758621052900,-910.0,0.00027436,2]
[387186272,1758621052909,-424.0,0.00027436,2]
[387186273,1758621052919,-1935.8164,0.0002744,2]
[387186274,1758621052928,-152.28513584,0.00027447,2]
[387186275,1758621052941,-600.0,0.00027473,2]
[387186276,1758621052951,-197.41728277,0.000275,2]
[387186277,1758621052960,-539.25829687,0.000275,2]
[387186278,1758621052970,-501.0054128,0.00027616,5]
[387186279,1758621052980,-686.45144937,0.00027616,5]
[387186280,1758621052990,-501.04314647,0.00027616,5]
[387186281,1758621053000,-501.10356435,0.00027616,5]
[387186282,1758621053011,-416.7741394,0.00027616,5]
[387186283,1758621053023,-163.12,0.00027623,2]
[387186284,1758621053032,-1507.46101752,0.00027637,2]
[387186285,1758621053042,-1015.33959149,0.00027664,5]
[387186286,1758621053052,-1268.88,0.000277,2]
[387186287,1758621053062,-910.0,0.0002771,2]
[387186288,1758621053072,-424.0,0.0002771,2]
[387186289,1758621053082,-150.0,0.00027725,7]
[387186290,1758621053091,-314.17721419,0.00027743,2]
[387186291,1758621053101,-163.12,0.00027812,2]
[387186292,1758621053110,-683.30288093,0.00027827,2]
[387186293,1758621053120,-157.86,0.00027858,2]
[387186294,1758621053129,-911834.71190416,0.00027889,2]
[387186295,1758621053139,-12379.71693225,0.00027889,2]
[387186296,1758621053148,-38468.02,0.000279,7]
[387186297,1758621053158,-185.77977695,0.00027908,2]
[387186298,1758621053167,-19902.3005279,0.00027918,2]
[387186299,1758621053177,-1915.91498234,0.00027918,7]
[387186300,1758621053186,-15882.8342587,0.00027918,7]
[387186301,1758621053196,-21169.7048812,0.00027918,7]
[387186302,1758621053205,-5316.87793201,0.00027944,2]
[387186303,1758621053215,-182.0,0.0002797,2]
[387186304,1758621053225,-150.0,0.00027974,7]
[387186305,1758621053234,-150.0,0.00027974,7]
[387186306,1758621053244,-150.0,0.00027974,7]
[387186307,1758621053254,-910.0,0.00027984,2]
[387186308,1758621053263,-424.0,0.00027984,2]
[387186309,1758621053273,-400.0,0.00028,15]
[387186310,1758621053283,-159.9,0.00028,2]
[387186311,1758621053293,-209.5090205,0.00028,2]
[387186312,1758621053303,-300.0,0.00028,3]
[387186313,1758621053312,-167.3346751,0.00028,2]
[387186314,1758621053321,-516.64379166,0.00028,3]
[387186315,1758621053331,-2581.61,0.00028,7]
[387186316,1758621053347,-3227.25,0.00028,7]
[387186317,1758621053358,-3908.38,0.00028,7]
[387186318,1758621053374,-2747.52,0.00028,7]
[387186319,1758621053387,-1821.9,0.00028,7]
[387186320,1758621053574,-5343.87,0.00028,7]
[387186321,1758621053595,-152.0,0.0002802,9]
[387186322,1758621053605,-600.0,0.00028021,2]
[387186323,1758621053614,-542.91,0.00028099,60]
[387186324,1758621053623,-600.0,0.00028164,5]
[387186325,1758621053633,-399.985,0.00028179,7]
[387186326,1758621053642,-910.0,0.00028258,2]
[387186327,1758621053652,-424.0,0.00028258,2]
[387186328,1758621053661,-1007.515395,0.00028258,7]
[387186329,1758621053670,-1007.515395,0.00028258,7]
[387186330,1758621053680,-151.0,0.00028258,7]
[387186331,1758621053689,-1007.515395,0.00028258,7]
[387186332,1758621053698,-1007.5154,0.00028258,7]
[387186333,1758621053708,-268.34,0.00028278,30]
[387186334,1758621053719,-1870.98,0.00028278,30]
[387186335,1758621053729,-18876.25740849,0.00028279,9]
[387186336,1758621053739,-1507.46101752,0.00028374,2]
[387186337,1758621053749,-12379.71693225,0.00028424,2]
[387186338,1758621053759,-5316.87793201,0.00028467,2]
[387186339,1758621053769,-150.0,0.00028474,7]
[387186340,1758621053779,-150.0,0.00028474,7]
[387186341,1758621053789,-150.0,0.00028474,7]
[387186342,1758621053798,-431.89776955,0.00028532,2]
[387186343,1758621053826,-332.908,0.00026066,2]
[387186361,1758621359453,160.0,0.000301,120]
[387186362,1758621448395,160.0,0.000301,120]
[387186385,1758622005141,158.72,0.0001193,2]
[387186386,1758622005548,158.72,0.00014913,2]
[387186387,1758622005748,158.72,0.00017896,2]
[387186391,1758622232315,-280.00572687,0.00019797,2]
[387186392,1758622232330,-389.60248982,0.00019892,2]
[387186393,1758622232368,-110.39751018,0.00019892,2]
[387186394,1758622232379,-176.20676252,0.0002,2]
[387186395,1758622232475,-383.50666572,0.0002,2]
[387186396,1758622232531,-4612.10365113,0.0002,2]
[387186397,1758622232541,-186.93542138,0.00020072,2]
[387186398,1758622232550,-324.328952,0.00020773,2]
[387186399,1758622232560,-91.38601447,0.00020878,2]
[387186400,1758622232572,-67.33398553,0.00020878,2]
[387186401,1758622232581,-195.0,0.00021777,2]
[387186402,1758622232590,-1175.69779767,0.00021777,3]
[387186403,1758622232599,-1200.0,0.00021889,2]
[387186404,1758622232609,-516.64379166,0.0002189,2]
[387186405,1758622232619,-300.0,0.00021899,2]
[387186406,1758622232629,-1515.49,0.000219,2]
[387186407,1758622232639,-170.0,0.00022,2]
[387186408,1758622232649,-831.54,0.00022,2]
[387186409,1758622232658,-516.0,0.00022575,2]
[387186410,1758622232668,-899.0,0.00022835,2]
[387186411,1758622232678,-4231.0,0.00022835,2]
[387186412,1758622232688,-170.0,0.00023014,7]
[387186413,1758622232698,-831.54,0.0002357,2]
[387186414,1758622232708,-2500.0,0.00023833,7]
[387186415,1758622232717,-158.72,0.00023861,2]
[387186416,1758622232727,-185.48,0.00023875,2]
[387186417,1758622232736,-183.6435,0.0002429,2]
[387186418,1758622232746,-500.0,0.0002444,9]
[387186420,1758622232756,-500.0,0.0002444,9]
[387186422,1758622232765,-500.0,0.0002444,9]
[387186424,1758622232774,-500.0,0.0002444,9]
[387186426,1758622232784,-500.0,0.0002444,9]
[387186428,1758622232793,-500.0,0.0002444,9]
[387186430,1758622232803,-500.0,0.0002444,9]
[387186432,1758622232813,-500.0,0.0002444,9]
[387186434,1758622232822,-784.84,0.00024658,2]
[387186436,1758622232832,-1000.0,0.00024658,2]
[387186438,1758622232842,-8565.75555911,0.00024885,2]
[387186440,1758622232851,-3000.0,0.00024885,2]
[387186442,1758622232860,-151.0,0.00024885,2]
[387186444,1758622232870,-500.0,0.00024899,2]
[387186446,1758622232879,-289.52511021,0.00024899,2]
[387186448,1758622232889,-15716.28270767,0.000249,2]
[387186450,1758622232898,-8882.6885148,0.0002494,2]
[387186452,1758622232908,-600.0,0.00024985,2]
[387186454,1758622232918,-2848.98270997,0.00024995,2]
[387186456,1758622232927,-39500.66379753,0.00025,2]
[387186458,1758622232936,-500.0,0.00025,2]
[387186460,1758622232945,-831.54,0.00025139,7]
[387186462,1758622232955,-168.0,0.00025202,2]
[387186464,1758622232964,-200.0,0.00025237,2]
[387186466,1758622232973,-250.0,0.00025275,2]
[387186468,1758622232983,-168.0,0.00025312,2]
[387186469,1758622232997,-168.0,0.00025395,2]
[387186471,1758622233007,-150.0,0.00025418,7]
[387186473,1758622233017,-1000.0,0.00025418,2]
[387186475,1758622233026,-151.0,0.00025433,2]
[387186476,1758622233036,-330.46,0.00025459,2]
[387186477,1758622233046,-259.0,0.000255,5]
[387186478,1758622233056,-777.54,0.00025511,30]
[387186479,1758622233067,-600.0,0.00025533,2]
[387186480,1758622233078,-168.0,0.00025622,2]
[387186481,1758622233088,-168.0,0.00025682,2]
[387186482,1758622233099,-4111.82283346,0.000257,2]
[387186483,1758622233146,-405.95789884,0.000257,2]
[387186484,1758622233368,-2007.8392677,0.000257,2]
[387186485,1758622233379,-7727.71,0.00025709,2]
[387186486,1758622233389,-10836.54013501,0.00025745,4]
[387186487,1758622233401,-2787.73849155,0.00025745,4]
[387186498,1758622240369,-285.36,0.00025168,2]
[387186499,1758622240379,-2092.00408094,0.00025745,4]
[387186500,1758622240388,-415.68,0.00025779,2]
[387186501,1758622240397,-899.0,0.00025835,2]
[387186502,1758622240408,-4231.0,0.00025835,2]
[387186503,1758622240417,-9220.83508489,0.0002589,2]
[387186504,1758622240427,-169.9254935,0.0002589,2]
[387186505,1758622240436,-154.84264111,0.0002589,2]
[387186506,1758622240446,-180.92080212,0.000259,2]
[387186507,1758622240455,-1336.7769,0.000259,2]
[387186508,1758622240464,-4789.82891424,0.000259,2]
[387186509,1758622240474,-1325.20315145,0.000259,2]
[387186510,1758622240483,-753.73050876,0.000259,2]
[387186511,1758622240492,-500.0,0.00025973,2]
[387186512,1758622240502,-500.0,0.00025973,2]
[387186513,1758622240511,-500.0,0.00025973,2]
[387186514,1758622240521,-500.0,0.00025973,2]
[387186515,1758622240531,-500.0,0.00025973,2]
[387186516,1758622240541,-502.2365672,0.00025973,2]
[387186517,1758622240551,-500.0,0.00025973,2]
[387186518,1758622240561,-500.0,0.00025973,2]
[387186519,1758622240570,-500.0,0.00025973,2]
[387186520,1758622240580,-500.0,0.00025973,2]
[387186522,1758622240589,-500.0,0.00025973,2]
[387186523,1758622240599,-505.43984572,0.00025973,2]
[387186524,1758622240608,-500.0,0.00025973,2]
[387186525,1758622240618,-169.74,0.00025973,2]
[387186526,1758622240627,-151.98,0.0002598,2]
[387186527,1758622240636,-151.98,0.0002598,2]
[387186529,1758622240646,-259.53835891,0.0002598,2]
[387186530,1758622240656,-690.661,0.00025983,12]
[387186531,1758622240666,-184.50226902,0.00025983,12]
[387186532,1758622240675,-278.38156007,0.00025989,2]
[387186533,1758622240685,-151.98,0.0002599,2]
[387186534,1758622240694,-3875.28913247,0.0002599,2]
[387186535,1758622240731,-1155.7,0.0002599,2]
[387186793,1758622243410,-28945.15269291,0.0002599,2]
[387186811,1758622243568,-327.19740365,0.0002599,2]
[387186823,1758622243678,-12252.82687602,0.0002599,2]
[387186825,1758622243689,-41412.77098596,0.0002599,2]
[387186828,1758622243701,-3509.05370851,0.0002599,2]
[387186831,1758622243721,-531866.29798348,0.0002599,2]
[387186833,1758622243731,-617038.296722,0.0002599,2]
[387186835,1758622243740,-151.98,0.0002599,2]
[387186837,1758622243749,-151.98,0.0002599,2]
[387186839,1758622243759,-151.98,0.0002599,2]
[387186841,1758622243769,-151.98,0.0002599,2]
[387186843,1758622243778,-151.98,0.0002599,2]
[387186845,1758622243788,-259.53835891,0.0002599,2]
[387186847,1758622243798,-92801.34992166,0.0002599,2]
[387186849,1758622243809,-4870.15105884,0.0002599,2]
[387186851,1758622243821,-111521.24989518,0.0002599,2]
[387186853,1758622243832,-261.1087739,0.0002599,2]
[387186932,1758622246260,-1179.0,0.00022835,2]
[387186933,1758622246270,-1179.0,0.00025835,2]
[387186934,1758622246279,-95.35123909,0.0002599,2]
[387186965,1758622246818,-13448.46032184,0.0002599,2]
[387186967,1758622246830,-300.355,0.0002599,2]
[387186970,1758622246842,-1501.8694192,0.0002599,2]
[387186974,1758622246873,-6371.94461902,0.0002599,2]
[387186977,1758622246895,-32100.05730647,0.0002599,2]
[387186980,1758622246907,-6243.98333491,0.0002599,2]
[387186982,1758622246916,-9951.15026396,0.00026,2]
[387186984,1758622246925,-10119.56604535,0.00026,2]
[387186986,1758622246936,-355.88,0.00026,2]
[387186988,1758622246946,-6966.600002,0.00026,2]
[387186990,1758622246957,-10295.96000005,0.00026,2]
[387186992,1758622246968,-5326.76527941,0.00026,2]
[387186995,1758622246982,-801.58177035,0.00026,2]
[387186997,1758622246993,-756.45735762,0.00026,2]
[387187677,1758622921226,156.04,0.00012325,2]
[387187681,1758623120206,1079.4,0.00024,120]
[387187684,1758623173609,160.0,0.000301,120]
[387187718,1758623431589,-191.92617758,0.00019899,2]
[387187743,1758623432102,-169.92549347,0.000199,2]
[387187745,1758623432114,-296.81191452,0.00019973,2]
[387187758,1758623432742,-203.18808548,0.00019973,2]
[387187759,1758623432753,-152.13,0.0001999,2]
[387187760,1758623432762,-130.96146253,0.0001999,2]
[387187761,1758623432774,-32.74853747,0.0001999,2]
[387187762,1758623432784,-1200.0,0.00019998,2]
[387187763,1758623432794,-300.0,0.00019998,2]
[387187764,1758623432804,-250.0,0.00019998,2]
[387187765,1758623432813,-2500.0,0.00019999,2]
[387187766,1758623432823,-500.0,0.00019999,2]
[387187767,1758623432833,-300.0,0.00019999,2]
[387187768,1758623432843,-850.0,0.00019999,2]
[387187769,1758623432852,-194.86709205,0.00019999,2]
[387187770,1758623432862,-500.0,0.00019999,2]
[387187771,1758623432872,-500.0,0.00019999,2]
[387187772,1758623432881,-500.0,0.00019999,2]
[387187773,1758623432891,-500.0,0.00019999,2]
[387187774,1758623432900,-233.31652525,0.00019999,2]
[387187775,1758623432910,-35994.700433,0.0002,2]
[387187776,1758623432919,-6732.65567723,0.0002,2]
[387187777,1758623432939,-421.38792836,0.0002,2]
[387187778,1758623433009,-86287.03600333,0.0002,2]
[387187793,1758623437568,-1151995.96569291,0.0002,2]
[387187794,1758623437578,-500.0,0.0002,2]
[387187795,1758623437587,-500.0,0.0002,2]
[387187796,1758623437596,-500.0,0.0002,2]
[387187797,1758623437606,-500.0,0.0002,2]
[387187798,1758623437615,-500.0,0.0002,2]
[387187799,1758623437625,-500.0,0.0002,2]
[387187800,1758623437634,-500.0,0.0002,2]
[387187801,1758623437644,-500.0,0.0002,2]
[387187802,1758623437653,-500.0,0.0002,2]
[387187803,1758623437663,-500.0,0.0002,2]
[387187804,1758623437673,-500.0,0.0002,2]
[387187805,1758623437687,-500.0,0.0002,2]
[387187806,1758623437696,-500.0,0.0002,2]
[387187807,1758623437710,-500.0,0.0002,2]
[387187808,1758623437719,-500.0,0.0002,2]
[387187809,1758623437729,-500.0,0.0002,2]
[387187810,1758623437738,-500.0,0.0002,2]
[387187812,1758623437747,-500.0,0.0002,2]
[387187813,1758623437758,-500.0,0.0002,2]
[387187814,1758623437768,-500.0,0.0002,2]
[387187815,1758623437776,-500.0,0.0002,2]
[387187816,1758623437785,-500.0,0.0002,2]
[387187817,1758623437795,-500.0,0.0002,2]
[387187819,1758623437805,-1000.0,0.0002,2]
[387187820,1758623437815,-500.0,0.0002,2]
[387187822,1758623437824,-500.0,0.0002,2]
[387187823,1758623437834,-500.0,0.0002,2]
[387187824,1758623437845,-500.0,0.0002,2]
[387187825,1758623437855,-500.0,0.0002,2]
[387187826,1758623437864,-500.0,0.0002,2]
[387187827,1758623437874,-500.0,0.0002,2]
[387187828,1758623437883,-500.0,0.0002,2]
[387187829,1758623437893,-500.0,0.0002,2]
[387187830,1758623437903,-500.0,0.0002,2]
[387187831,1758623437912,-500.0,0.0002,2]
[387187832,1758623437922,-500.0,0.0002,2]
[387187833,1758623437933,-500.0,0.0002,2]
[387187834,1758623437942,-500.0,0.0002,2]
[387187835,1758623437954,-500.0,0.0002,2]
[387187837,1758623437965,-500.0,0.0002,2]
[387187838,1758623437974,-500.0,0.0002,2]
[387187839,1758623437983,-500.0,0.0002,2]
[387187840,1758623437993,-500.0,0.0002,2]
[387187841,1758623438003,-500.0,0.0002,2]
[387187842,1758623438012,-500.0,0.0002,2]
[387187843,1758623438022,-500.0,0.0002,2]
[387187844,1758623438032,-500.0,0.0002,2]
[387187845,1758623438041,-500.0,0.0002,2]
[387187846,1758623438051,-500.0,0.0002,2]
[387187847,1758623438061,-500.0,0.0002,2]
[387187848,1758623438070,-500.0,0.0002,2]
[387187849,1758623438080,-500.0,0.0002,2]
[387187850,1758623438090,-500.0,0.0002,2]
[387187851,1758623438099,-500.0,0.0002,2]
[387187852,1758623438109,-500.0,0.0002,2]
[387187853,1758623438119,-500.0,0.0002,2]
[387187854,1758623438128,-500.0,0.0002,2]
[387187855,1758623438138,-500.0,0.0002,2]
[387187856,1758623438148,-500.0,0.0002,2]
[387187857,1758623438158,-500.0,0.0002,2]
[387187858,1758623438167,-500.0,0.0002,2]
[387187859,1758623438176,-500.0,0.0002,2]
[387187860,1758623438186,-500.0,0.0002,2]
[387187861,1758623438195,-819.10044956,0.0002,2]
[387187862,1758623438206,-151.69,0.00020166,2]
[387187863,1758623438216,-500.0,0.00020274,2]
[387187864,1758623438226,-150.24,0.00020335,2]
[387187865,1758623438236,-24846.77,0.00020457,2]
[387187866,1758623438245,-1000.0,0.00020521,2]
[387187867,1758623438255,-500.0,0.00020548,2]
[387187868,1758623438264,-1278.46818259,0.0002061,2]
[387187869,1758623438273,-2503.09,0.00020726,2]
[387187870,1758623438282,-1990.44,0.00020749,2]
[387187871,1758623438291,-8788.98,0.00020793,2]
[387187872,1758623438301,-500.0,0.00020822,2]
[387187873,1758623438311,-299.0,0.00020999,2]
[387187874,1758623438320,-1000.0,0.00021068,2]
[387187875,1758623438329,-500.0,0.00021096,2]
[387187876,1758623438339,-500.0,0.0002137,2]
[387187877,1758623438348,-4523.8688407,0.00021477,2]
[387187878,1758623438358,-151.0,0.00021522,2]
[387187879,1758623438368,-154.84264107,0.00021577,2]
[387187880,1758623438376,-306.35,0.00021644,2]
[387187881,1758623438386,-9655.88780182,0.00021677,2]
[387187882,1758623438395,-206.74,0.00021746,4]
[387187883,1758623438404,-1680.0,0.0002188,2]
[387187884,1758623438414,-59000.00976541,0.000219,2]
[387187885,1758623438424,-1673.53,0.000219,2]
[387187886,1758623438433,-4523.86884064,0.00021968,2]
[387187887,1758623438443,-300.0,0.00021998,2]
[387187888,1758623438453,-301.23375092,0.00021998,2]
[387187889,1758623438463,-2500.0,0.00021998,2]
[387187890,1758623438473,-500.0,0.00021998,2]
[387187891,1758623438483,-250.0,0.00021998,2]
[387187892,1758623438493,-2000.0,0.00021999,3]
[387187893,1758623438502,-300.0,0.00021999,2]
[387187894,1758623438512,-1051.08417756,0.00022,14]
[387187895,1758623438521,-206.69,0.00022,2]
[387187896,1758623438531,-250.0,0.00022,2]
[387187897,1758623438541,-279.6355936,0.00022,2]
[387187898,1758623438551,-500.0,0.000221,2]
[387187899,1758623438561,-9655.88780175,0.00022146,2]
[387187900,1758623438571,-4000.0,0.00022304,4]
[387187901,1758623438580,-5000.0,0.00022373,2]